Workbook

Sheet À faire
C3: Sur la feuille : | D3: Réalisez ceci :
B5: 1- | C5: CP_Villes | D5: - Récupérez les valeurs uniques des intervention d'un intervenant (par exemple à partir de la feuille 'Interventions JDE').
D6: => Créez alors une liste dont le contenu sera la liste de ces valeurs uniques
B8: 2- | C8: Interventions-GME | D8: - Faire en sorte que le CP de l'intervention soit choisi via une liste proposant tous les codes postaux
D9: - Transformer la plage en un tableau de données
D10: - Récupérer le nom du praticien dans une nouvelle colonne (3 dernières lettres du nom de la feuille)
B12: 3- | C12: Interventions | D12: Via Power Query, récupérer les données des 3 praticiens et assemblez-les sur la feuille 'Interventions'
B14: 4- | C14: Intervenants | D14: Ajoutez un code à chaque intervenant, celui-ci se compose da la première lettre du prénom et des 2 premières lettres du nom
B16: 5- | C16: Interventions_complète | D16: Via Power Query, créez une requête qui permet d'ajouter à la liste des interventions la commune, le nom et le prénom du praticien du praticien
B18: 6- | C18: EXO-01 | D18: Récupération de données et nettoyage via Power Query
B20: 7- | C20: EXO-02 | D20: Combinaison de requête via Power Query
B22: 8- | C22: EXO-03 | D22: Relation entre 'queries' pour créé un TCD

Sheet CP_Villes
A1: Colonne1 | B1: Colonne2 | O1: Retour
A2: 1070 | B2: Anderlecht | D2: - Récupérez les valeurs uniques des intervention d'un intervenant (par exemple à partir de la feuille 'Interventions JDE').
A3: 1160 | B3: Auderghem | D3: => Créez alors une liste dont le contenu sera la liste de ces valeurs uniques
A4: 1082 | B4: Berchem-Sainte-Agathe
A5: 1000 | B5: Ville de Bruxelles
A6: 1040 | B6: Etterbeek | F6: Interventions
A7: 1140 | B7: Evere | F7: =_xlfn._xlws.SORT(_xlfn.UNIQUE(JDE[Type])) -> Administration
A8: 1190 | B8: Forest | F8: Consultation centre
A9: 1083 | B9: Ganshoren | F9: Consultation domicile
A10: 1050 | B10: Ixelles | F10: Intervention d'urgence
A11: 1090 | B11: Jette | F11: 0
A12: 1081 | B12: Koekelberg
A13: 1080 | B13: Molenbeek-Saint-Jean
A14: 1060 | B14: Saint-Gilles | D14: - Récupérez les valeurs uniques des intervention d'un intervenant (par exemple à partir de la feuille 'Interventions-GME').
A15: 1210 | B15: Saint-Josse-ten-Noode | D15: => Créez alors une liste dont le contenu sera la liste de ces valeurs uniques (sur les feuilles 'Interventions-GME')
A16: 1030 | B16: Schaerbeek
A17: 1180 | B17: Uccle
A18: 1170 | B18: Watermael-Boitsfort | F18: Interventions
A19: 1200 | B19: Woluwe-Saint-Lambert
A20: 1150 | B20: Woluwe-Saint-Pierre

Sheet Intervenants
A1: Nom | B1: Prénom | C1: Code | M1: Retour
A2: Tredelè | B2: Willy
A3: Foupasune | B3: Jean
A4: Bistrot | B4: Alonso | E4: Ajoutez un code à chaque intervenant, celui-ci se compose da la première lettre du prénom et des 2 premières lettres du nom
A5: Bijoba | B5: Jo | E5: Le code sera en majuscule
A6: Covert | B6: Harry | E6: Créez une 'Query' qui reprend les données de ce tableau. Ne créez que la connexion lors du chargement.
A7: Culaire | B7: Laury
A8: Deuf | B8: John
A9: Foupasune | B9: Jean
A10: Lairbon | B10: Oussama
A11: Menvussa | B11: Gérard
A12: Lalalalalalala | B12: Starsky
A13: Lalalalalalala | B13: Hutch
A14: Cléssoulaporte | B14: Djamila
A15: Noux | B15: Marion
A16: Ouzi | B16: Jacques
A17: Stiké | B17: Sophie
A18: Tare | B18: Guy
A19: Vaisselle | B19: Aude
A20: Zetofrais | B20: Mélanie
A21: Touille | B21: Sasha
A22: Proviste | B22: Alain
A23: Peulaporte | B23: Firmin
A24: Unetitlaine | B24: Jérémy

Sheet Intervenants_Solution
A1: Nom | B1: Prénom | C1: Code_Solution | M1: Retour
A2: Tredelè | B2: Willy | C2: =LEFT(B2,1)&UPPER(LEFT(A2,2)) -> WTR
A3: Foupasune | B3: Jean | C3: =LEFT(B3,1)&UPPER(LEFT(A3,2)) -> JFO
A4: Bistrot | B4: Alonso | C4: ABI | E4: Ajoutez un code à chaque intervenant, celui-ci se compose da la première lettre du prénom et des 2 premières lettres du nom
A5: Bijoba | B5: Jo | C5: JBI | E5: Le code sera en majuscule
A6: Covert | B6: Harry | C6: HCO | E6: Créez une 'Query' qui reprend les données de ce tableau sans doublons. Ne créez que la connexion lors du chargement.
A7: Culaire | B7: Laury | C7: LCU
A8: Deuf | B8: John | C8: JDE
A9: Foupasune | B9: Jean | C9: JFO
A10: Lairbon | B10: Oussama | C10: OLA
A11: Menvussa | B11: Gérard | C11: GME
A12: Lalalalalalala | B12: Starsky | C12: SLA
A13: Lalalalalalala | B13: Hutch | C13: HLA
A14: Cléssoulaporte | B14: Djamila | C14: DCL
A15: Noux | B15: Marion | C15: MNO
A16: Ouzi | B16: Jacques | C16: JOU
A17: Stiké | B17: Sophie | C17: SST
A18: Tare | B18: Guy | C18: GTA
A19: Vaisselle | B19: Aude | C19: AVA
A20: Zetofrais | B20: Mélanie | C20: MZE
A21: Touille | B21: Sasha | C21: STO
A22: Proviste | B22: Alain | C22: APR
A23: Peulaporte | B23: Firmin | C23: FPE
A24: Unetitlaine | B24: Jérémy | C24: JUN

Sheet Interventions
O1: Retour
A2: Via Power Query, récupérer les données des 3 praticiens et assemblez-les sur la feuille 'Interventions'
A3: Chargez les données sur cette feuille

Sheet Interventions_Solution
M1: Retour
A2: Via Power Query, récupérer les données des 3 praticiens et assemblez-les sur la feuille 'Interventions'
A3: Chargez les données sur cette feuille
A6: Date | B6: Type | C6: Commune | D6: Praticien
A7: 2024-01-06 | B7: Consultation domicile | C7: 1000 | D7: JDE
A8: 2024-01-06 | B8: Consultation centre | C8: 1050 | D8: JDE
A9: 2024-01-06 | B9: Consultation centre | C9: 1050 | D9: JDE
A10: 2024-01-06 | B10: Consultation centre | C10: 1050 | D10: JDE
A11: 2024-01-06 | B11: Consultation domicile | C11: 1060 | D11: JDE
A12: 2024-01-06 | B12: Intervention d'urgence | C12: 1060 | D12: JDE
A13: 2024-02-07 | B13: Intervention d'urgence | C13: 1060 | D13: JDE
A14: 2024-02-08 | B14: Intervention d'urgence | C14: 1060 | D14: JDE
A15: 2024-02-09 | B15: Consultation domicile | C15: 1060 | D15: JDE
A16: 2024-02-10 | B16: Consultation domicile | C16: 1060 | D16: JDE
A17: 2024-02-11 | B17: Consultation domicile | C17: 1060 | D17: JDE
A18: 2024-04-15 | B18: Administration | C18: 1150 | D18: JDE
A19: 2024-06-18 | B19: Administration | C19: 1200 | D19: JDE
A20: 2024-03-05 | B20: Administration | C20: 1200 | D20: JDE
A21: 2024-03-06 | B21: Consultation domicile | C21: 1200 | D21: JDE
A22: 2024-03-07 | B22: Administration | C22: 1050 | D22: JDE
A23: 2024-03-08 | B23: Intervention d'urgence | C23: 1050 | D23: JDE
A24: 2024-03-09 | B24: Intervention d'urgence | C24: 1050 | D24: JDE
A25: 2024-05-05 | B25: Intervention d'urgence | C25: 1060 | D25: JDE
A26: 2024-08-10 | B26: Administration | C26: 1000 | D26: JDE
A27: 2024-08-05 | B27: Consultation domicile | C27: 1000 | D27: JDE
A28: 2024-06-16 | B28: Consultation domicile | C28: 1080 | D28: JDE
A29: 2024-06-16 | B29: Administration | C29: 1000 | D29: JDE
A30: 2024-06-16 | D30: JDE
A31: 2024-01-06 | B31: Consultation domicile | C31: 1000 | D31: WTR
A32: 2024-01-06 | B32: Consultation centre | C32: 1050 | D32: WTR
A33: 2024-01-06 | B33: Consultation centre | C33: 1050 | D33: WTR
A34: 2024-01-06 | B34: Consultation centre | C34: 1050 | D34: WTR
A35: 2024-01-06 | B35: Consultation domicile | C35: 1060 | D35: WTR
A36: 2024-01-06 | B36: Intervention d'urgence | C36: 1060 | D36: WTR
A37: 2024-02-07 | B37: Intervention d'urgence | C37: 1060 | D37: WTR
A38: 2024-02-08 | B38: Intervention d'urgence | C38: 1060 | D38: WTR
A39: 2024-02-09 | B39: Consultation domicile | C39: 1060 | D39: WTR
A40: 2024-02-10 | B40: Consultation domicile | C40: 1060 | D40: WTR
A41: 2024-02-11 | B41: Consultation domicile | C41: 1060 | D41: WTR
A42: 2024-04-15 | B42: Administration | C42: 1150 | D42: WTR
A43: 2024-06-18 | B43: Administration | C43: 1200 | D43: WTR
A44: 2024-03-05 | B44: Administration | C44: 1200 | D44: WTR
A45: 2024-03-06 | B45: Consultation domicile | C45: 1200 | D45: WTR
A46: 2024-03-07 | B46: Administration | C46: 1050 | D46: WTR
A47: 2024-03-08 | B47: Intervention d'urgence | C47: 1050 | D47: WTR
A48: 2024-03-09 | B48: Intervention d'urgence | C48: 1050 | D48: WTR

Sheet Interventions_complète
O1: Retour
A2: Via Power Query, créez une requête qui permet d'ajouter à la liste des interventions le nom et le prénom du praticien du praticien
A3: Chargez les données ci-dessous

Sheet Interventions_complète_Solution
O1: Retour
A2: Via Power Query, créez une requête qui permet d'ajouter à la liste des interventions le nom et le prénom du praticien du praticien
A3: Chargez les données ci-dessous
A7: Date | B7: Type | C7: Commune | D7: Praticien | E7: Nom | F7: Prénom
A8: 2024-01-06 | B8: Consultation domicile | C8: 1000 | D8: JDE | E8: Deuf | F8: John
A9: 2024-01-06 | B9: Consultation centre | C9: 1050 | D9: JDE | E9: Deuf | F9: John
A10: 2024-01-06 | B10: Consultation centre | C10: 1050 | D10: JDE | E10: Deuf | F10: John
A11: 2024-01-06 | B11: Consultation centre | C11: 1050 | D11: JDE | E11: Deuf | F11: John
A12: 2024-01-06 | B12: Consultation domicile | C12: 1060 | D12: JDE | E12: Deuf | F12: John
A13: 2024-01-06 | B13: Intervention d'urgence | C13: 1060 | D13: JDE | E13: Deuf | F13: John
A14: 2024-02-07 | B14: Intervention d'urgence | C14: 1060 | D14: JDE | E14: Deuf | F14: John
A15: 2024-02-08 | B15: Intervention d'urgence | C15: 1060 | D15: JDE | E15: Deuf | F15: John
A16: 2024-02-09 | B16: Consultation domicile | C16: 1060 | D16: JDE | E16: Deuf | F16: John
A17: 2024-02-10 | B17: Consultation domicile | C17: 1060 | D17: JDE | E17: Deuf | F17: John
A18: 2024-02-11 | B18: Consultation domicile | C18: 1060 | D18: JDE | E18: Deuf | F18: John
A19: 2024-04-15 | B19: Administration | C19: 1150 | D19: JDE | E19: Deuf | F19: John
A20: 2024-06-18 | B20: Administration | C20: 1200 | D20: JDE | E20: Deuf | F20: John
A21: 2024-03-05 | B21: Administration | C21: 1200 | D21: JDE | E21: Deuf | F21: John
A22: 2024-03-06 | B22: Consultation domicile | C22: 1200 | D22: JDE | E22: Deuf | F22: John
A23: 2024-03-07 | B23: Administration | C23: 1050 | D23: JDE | E23: Deuf | F23: John
A24: 2024-03-08 | B24: Intervention d'urgence | C24: 1050 | D24: JDE | E24: Deuf | F24: John
A25: 2024-03-09 | B25: Intervention d'urgence | C25: 1050 | D25: JDE | E25: Deuf | F25: John
A26: 2024-05-05 | B26: Intervention d'urgence | C26: 1060 | D26: JDE | E26: Deuf | F26: John
A27: 2024-08-10 | B27: Administration | C27: 1000 | D27: JDE | E27: Deuf | F27: John
A28: 2024-08-05 | B28: Consultation domicile | C28: 1000 | D28: JDE | E28: Deuf | F28: John
A29: 2024-06-16 | B29: Consultation domicile | C29: 1080 | D29: JDE | E29: Deuf | F29: John
A30: 2024-06-16 | B30: Administration | C30: 1000 | D30: JDE | E30: Deuf | F30: John
A31: 2024-06-16 | D31: JDE | E31: Deuf | F31: John
A32: 2024-01-06 | B32: Consultation domicile | C32: 1000 | D32: WTR | E32: Tredelè | F32: Willy
A33: 2024-01-06 | B33: Consultation centre | C33: 1050 | D33: WTR | E33: Tredelè | F33: Willy
A34: 2024-01-06 | B34: Consultation centre | C34: 1050 | D34: WTR | E34: Tredelè | F34: Willy
A35: 2024-01-06 | B35: Consultation centre | C35: 1050 | D35: WTR | E35: Tredelè | F35: Willy
A36: 2024-01-06 | B36: Consultation domicile | C36: 1060 | D36: WTR | E36: Tredelè | F36: Willy
A37: 2024-01-06 | B37: Intervention d'urgence | C37: 1060 | D37: WTR | E37: Tredelè | F37: Willy
A38: 2024-02-07 | B38: Intervention d'urgence | C38: 1060 | D38: WTR | E38: Tredelè | F38: Willy
A39: 2024-02-08 | B39: Intervention d'urgence | C39: 1060 | D39: WTR | E39: Tredelè | F39: Willy
A40: 2024-02-09 | B40: Consultation domicile | C40: 1060 | D40: WTR | E40: Tredelè | F40: Willy
A41: 2024-02-10 | B41: Consultation domicile | C41: 1060 | D41: WTR | E41: Tredelè | F41: Willy
A42: 2024-02-11 | B42: Consultation domicile | C42: 1060 | D42: WTR | E42: Tredelè | F42: Willy
A43: 2024-04-15 | B43: Administration | C43: 1150 | D43: WTR | E43: Tredelè | F43: Willy
A44: 2024-06-18 | B44: Administration | C44: 1200 | D44: WTR | E44: Tredelè | F44: Willy
A45: 2024-03-05 | B45: Administration | C45: 1200 | D45: WTR | E45: Tredelè | F45: Willy
A46: 2024-03-06 | B46: Consultation domicile | C46: 1200 | D46: WTR | E46: Tredelè | F46: Willy
A47: 2024-03-07 | B47: Administration | C47: 1050 | D47: WTR | E47: Tredelè | F47: Willy
A48: 2024-03-08 | B48: Intervention d'urgence | C48: 1050 | D48: WTR | E48: Tredelè | F48: Willy
A49: 2024-03-09 | B49: Intervention d'urgence | C49: 1050 | D49: WTR | E49: Tredelè | F49: Willy

Sheet Interventions-JDE
A1: Date | B1: Type | C1: Commune | D1: Praticien | E1: Praticien par fonction | O1: Retour
A2: 2024-01-06 | B2: Consultation domicile | C2: 1000 | D2: JDE | E2: =RIGHT(CELL("nomfichier"),3) -> ire
A3: 2024-01-06 | B3: Consultation centre | C3: 1050 | D3: JDE | E3: =RIGHT(CELL("nomfichier"),3) -> ire
A4: 2024-01-06 | B4: Consultation centre | C4: 1050 | D4: JDE | E4: =RIGHT(CELL("nomfichier"),3) -> ire
A5: 2024-01-06 | B5: Consultation centre | C5: 1050 | D5: JDE | E5: =RIGHT(CELL("nomfichier"),3) -> ire | F5: NB : | G5: Il est possible de récupérer le nom de la feuille (qui reprend le code de l'intervenant) en utilisant la fonction 'Cellule'
A6: 2024-01-06 | B6: Consultation domicile | C6: 1060 | D6: JDE | E6: =RIGHT(CELL("nomfichier"),3) -> ire | G6: Le problème est qu'elle reprend le nom de la dernière feuille sur laquelle on se trouve et affiche le nom dune mauvaise feuille si nous n'actualisons pas
A7: 2024-01-06 | B7: Intervention d'urgence | C7: 1060 | D7: JDE | E7: =RIGHT(CELL("nomfichier"),3) -> ire | G7: La macro créée ici, disponible via le bouton ci-dessus permet de récupérer le nom de la feuille par formule et de le "figer" en copiant-collant les valeurs dans la colonne 'Praticien'
A8: 2024-02-07 | B8: Intervention d'urgence | C8: 1060 | D8: JDE | E8: =RIGHT(CELL("nomfichier"),3) -> ire
A9: 2024-02-08 | B9: Intervention d'urgence | C9: 1060 | D9: JDE | E9: =RIGHT(CELL("nomfichier"),3) -> ire | F9: NomFichier : | G9: =CELL("nomfichier") -> https://d.docs.live.net/e5c19e8ea449bfdd/Nouveau site/Fichiers Declick/Bruxelles Formation/12. Power Query - TCD - Tableaux de bord/[TDB-Exercice02.xlsm]À faire
A10: 2024-02-09 | B10: Consultation domicile | C10: 1060 | D10: JDE | E10: =RIGHT(CELL("nomfichier"),3) -> ire | F10: Position "]" : | G10: =FIND("]",G9) -> 153
A11: 2024-02-10 | B11: Consultation domicile | C11: 1060 | D11: JDE | E11: =RIGHT(CELL("nomfichier"),3) -> ire | F11: Nom de la feuille : | G11: =RIGHT(G9,LEN(G9)-G10) -> À faire
A12: 2024-02-11 | B12: Consultation domicile | C12: 1060 | D12: JDE | E12: =RIGHT(CELL("nomfichier"),3) -> ire
A13: 2024-04-15 | B13: Administration | C13: 1150 | D13: JDE | E13: =RIGHT(CELL("nomfichier"),3) -> ire | F13: NB : | G13: Ici, nous devions uniquement reprendre les 3 derniers caractères du nom du fichier
A14: 2024-06-18 | B14: Administration | C14: 1200 | D14: JDE | E14: =RIGHT(CELL("nomfichier"),3) -> ire | G14: Mais, d'une façon plus générale, la formule ci-dessus vous permet d'obtenir le nom de la feuille
A15: 2024-03-05 | B15: Administration | C15: 1200 | D15: JDE | E15: =RIGHT(CELL("nomfichier"),3) -> ire
A16: 2024-03-06 | B16: Consultation domicile | C16: 1200 | D16: JDE | E16: =RIGHT(CELL("nomfichier"),3) -> ire | G16: NB: Un problème de la fonction 'Cellule' est qu'elle va remplacer le nom de la feuille là où elle est utilisée à chaque changement de feuille (et le reprendre sur chaque feuille)
A17: 2024-03-07 | B17: Administration | C17: 1050 | D17: JDE | E17: =RIGHT(CELL("nomfichier"),3) -> ire
A18: 2024-03-08 | B18: Intervention d'urgence | C18: 1050 | D18: JDE | E18: =RIGHT(CELL("nomfichier"),3) -> ire | G18: => Après calcul, il faut récupérer le résultat du calcul (et donc le nom du praticien) copiant et collant la valeur
A19: 2024-03-09 | B19: Intervention d'urgence | C19: 1050 | D19: JDE | E19: =RIGHT(CELL("nomfichier"),3) -> ire
A20: 2024-05-05 | B20: Intervention d'urgence | C20: 1060 | D20: JDE | E20: =RIGHT(CELL("nomfichier"),3) -> ire | G20: => Ceci peut se faire automatiquement par une macro créée par l'enregistreur de macro
A21: 2024-08-10 | B21: Administration | C21: 1000 | D21: JDE | E21: =RIGHT(CELL("nomfichier"),3) -> ire
A22: 2024-08-05 | B22: Consultation domicile | C22: 1000 | D22: JDE | E22: =RIGHT(CELL("nomfichier"),3) -> ire | G22: => Les étapes de la macro :
A23: 2024-06-16 | B23: Consultation domicile | C23: 1080 | D23: JDE | E23: =RIGHT(CELL("nomfichier"),3) -> ire
A24: 2024-06-16 | B24: Administration | C24: 1000 | D24: JDE | E24: =RIGHT(CELL("nomfichier"),3) -> ire | H24: Effacer le contenu de lu champ 'praticien'
A25: 2024-06-16 | D25: JDE | E25: =RIGHT(CELL("nomfichier"),3) -> ire | H25: En ligne 2 du tableau, dans le champ 'Praticien', extraire les 3 derniers caractères de 'NomFichier'
H26: Copier le champ 'Praticien'
H27: Coller les valeurs

Sheet Interventions-WTR
A1: Date | B1: Type | C1: Commune | D1: Praticien | E1: Praticien par fonction | O1: Retour
A2: 2024-01-06 | B2: Consultation domicile | C2: 1000 | D2: WTR | E2: =RIGHT(CELL("nomfichier"),3) -> ire
A3: 2024-01-06 | B3: Consultation centre | C3: 1050 | D3: WTR | E3: =RIGHT(CELL("nomfichier"),3) -> ire
A4: 2024-01-06 | B4: Consultation centre | C4: 1050 | D4: WTR | E4: =RIGHT(CELL("nomfichier"),3) -> ire
A5: 2024-01-06 | B5: Consultation centre | C5: 1050 | D5: WTR | E5: =RIGHT(CELL("nomfichier"),3) -> ire
A6: 2024-01-06 | B6: Consultation domicile | C6: 1060 | D6: WTR | E6: =RIGHT(CELL("nomfichier"),3) -> ire
A7: 2024-01-06 | B7: Intervention d'urgence | C7: 1060 | D7: WTR | E7: =RIGHT(CELL("nomfichier"),3) -> ire
A8: 2024-02-07 | B8: Intervention d'urgence | C8: 1060 | D8: WTR | E8: =RIGHT(CELL("nomfichier"),3) -> ire
A9: 2024-02-08 | B9: Intervention d'urgence | C9: 1060 | D9: WTR | E9: =RIGHT(CELL("nomfichier"),3) -> ire
A10: 2024-02-09 | B10: Consultation domicile | C10: 1060 | D10: WTR | E10: =RIGHT(CELL("nomfichier"),3) -> ire
A11: 2024-02-10 | B11: Consultation domicile | C11: 1060 | D11: WTR | E11: =RIGHT(CELL("nomfichier"),3) -> ire
A12: 2024-02-11 | B12: Consultation domicile | C12: 1060 | D12: WTR | E12: =RIGHT(CELL("nomfichier"),3) -> ire
A13: 2024-04-15 | B13: Administration | C13: 1150 | D13: WTR | E13: =RIGHT(CELL("nomfichier"),3) -> ire
A14: 2024-06-18 | B14: Administration | C14: 1200 | D14: WTR | E14: =RIGHT(CELL("nomfichier"),3) -> ire
A15: 2024-03-05 | B15: Administration | C15: 1200 | D15: WTR | E15: =RIGHT(CELL("nomfichier"),3) -> ire
A16: 2024-03-06 | B16: Consultation domicile | C16: 1200 | D16: WTR | E16: =RIGHT(CELL("nomfichier"),3) -> ire
A17: 2024-03-07 | B17: Administration | C17: 1050 | D17: WTR | E17: =RIGHT(CELL("nomfichier"),3) -> ire
A18: 2024-03-08 | B18: Intervention d'urgence | C18: 1050 | D18: WTR | E18: =RIGHT(CELL("nomfichier"),3) -> ire
A19: 2024-03-09 | B19: Intervention d'urgence | C19: 1050 | D19: WTR | E19: =RIGHT(CELL("nomfichier"),3) -> ire

Sheet Interventions-GME
A1: Date | B1: Type | C1: Commune | D1: Praticien | M1: Retour
A2: 2024-01-06 | B2: Intervention d'urgence | C2: 1060 | D2: GME
A3: 2024-02-07 | B3: Intervention d'urgence | C3: 1060 | D3: GME
A4: 2024-02-08 | B4: Intervention d'urgence | C4: 1060 | D4: GME | F4: - Faire en sorte que le CP de l'intervention soit choisi via une liste proposant tous les codes postaux
A5: 2024-02-09 | B5: Consultation domicile | C5: 1060 | D5: GME | F5: - Transformer la plage en un tableau de données
A6: 2024-02-10 | B6: Consultation domicile | C6: 1060 | D6: GME | F6: - Récupérer le nom du praticien dans une nouvelle colonne (3 dernières lettres du nom de la feuille)
A7: 2024-02-11 | B7: Consultation domicile | C7: 1060 | D7: GME
A8: 2024-04-15 | B8: Administration | C8: 1150 | D8: GME
A9: 2024-03-05 | B9: Administration | C9: 1200 | D9: GME
A10: 2024-03-06 | B10: Consultation domicile | C10: 1200 | D10: GME
A11: 2024-03-07 | B11: Administration | C11: 1050 | D11: GME
A12: 2024-03-08 | B12: Intervention d'urgence | C12: 1050 | D12: GME
A13: 2024-01-06 | B13: Consultation centre | C13: 1050 | D13: GME
A14: 2024-01-06 | B14: Consultation domicile | C14: 1060 | D14: GME
A15: 2024-01-06 | B15: Intervention d'urgence | C15: 1060 | D15: GME

Sheet EXO-01
A1: À partir de ce site : | B1: https://fr.wikipedia.org/wiki/Liste_des_communes_de_la_r%C3%A9gion_de_Bruxelles-Capitale | M1: Retour
A2: Transformez les données de façon à ne garder que les colonnes telles que celles-ci-dessous
A3: Nettoyer la colonne 'Population' et renommez-la
A4: Via Power Query, ajoutez une colonne où vous calculez la densité (population/km²), arrondies à 2 décimales
A5: Chargez le résultat sur la feuille EXO-01
A6: Ajoutez à la fin une colonne CP qui sera complétée en utilisant la liste CP_Villes

Sheet EXO-01_Solution
A1: À partir de ce site : | B1: https://fr.wikipedia.org/wiki/Liste_des_communes_de_la_r%C3%A9gion_de_Bruxelles-Capitale | M1: Retour
A2: Transformez les données de façon à ne garder que les colonnes telles que celles-ci-dessous
A3: Nettoyer la colonne 'Population' et renommez-la
A4: Via Power Query, ajoutez une colonne où vous calculez la densité (population/km²), arrondies à 2 décimales
A5: Chargez le résultat sur la feuille EXO-01
A6: Ajoutez à la fin une colonne CP qui sera complétée en utilisant la liste CP_Villes
A8: Nom français | B8: Nom néerlandais | C8: Superficie (km2) | D8: Population (2019) | E8: Densité | F8: CP
A9: Anderlecht | B9: Anderlecht | C9: 17.74 | D9: 118920 | E9: 6703.49 | F9: =_xlfn.XLOOKUP(Solution_EXO_01[[#This Row],[Nom français]],CP_Villes!B2:B20,CP_Villes!A2:A20) -> 1070
A10: Auderghem | B10: Oudergem | C10: 9.03 | D10: 33970 | E10: 3761.9 | F10: =_xlfn.XLOOKUP(Solution_EXO_01[[#This Row],[Nom français]],CP_Villes!B3:B21,CP_Villes!A3:A21) -> 1160
A11: Berchem-Sainte-Agathe | B11: Sint-Agatha-Berchem | C11: 2.95 | D11: 25195 | E11: 8540.68 | F11: =_xlfn.XLOOKUP(Solution_EXO_01[[#This Row],[Nom français]],CP_Villes!B4:B22,CP_Villes!A4:A22) -> 1082
A12: Ville de Bruxelles | B12: Brussel (stad) | C12: 32.61 | D12: 179797 | E12: 5513.55 | F12: =_xlfn.XLOOKUP(Solution_EXO_01[[#This Row],[Nom français]],CP_Villes!B5:B23,CP_Villes!A5:A23) -> 1000
A13: Etterbeek | B13: Etterbeek | C13: 3.15 | D13: 48008 | E13: 15240.63 | F13: =_xlfn.XLOOKUP(Solution_EXO_01[[#This Row],[Nom français]],CP_Villes!B6:B24,CP_Villes!A6:A24) -> 1040
A14: Evere | B14: Evere | C14: 5.02 | D14: 41588 | E14: 8284.46 | F14: =_xlfn.XLOOKUP(Solution_EXO_01[[#This Row],[Nom français]],CP_Villes!B7:B25,CP_Villes!A7:A25) -> 1140
A15: Forest | B15: Vorst | C15: 6.25 | D15: 55925 | E15: 8948 | F15: =_xlfn.XLOOKUP(Solution_EXO_01[[#This Row],[Nom français]],CP_Villes!B8:B26,CP_Villes!A8:A26) -> 1190
A16: Ganshoren | B16: Ganshoren | C16: 2.64 | D16: 24817 | E16: 9400.38 | F16: =_xlfn.XLOOKUP(Solution_EXO_01[[#This Row],[Nom français]],CP_Villes!B9:B27,CP_Villes!A9:A27) -> 1083
A17: Ixelles | B17: Elsene | C17: 6.34 | D17: 86675 | E17: 13671.14 | F17: =_xlfn.XLOOKUP(Solution_EXO_01[[#This Row],[Nom français]],CP_Villes!B10:B28,CP_Villes!A10:A28) -> 1050
A18: Jette | B18: Jette | C18: 5.04 | D18: 52417 | E18: 10400.2 | F18: =_xlfn.XLOOKUP(Solution_EXO_01[[#This Row],[Nom français]],CP_Villes!B11:B29,CP_Villes!A11:A29) -> 1090
A19: Koekelberg | B19: Koekelberg | C19: 1.17 | D19: 21961 | E19: 18770.09 | F19: =_xlfn.XLOOKUP(Solution_EXO_01[[#This Row],[Nom français]],CP_Villes!B12:B30,CP_Villes!A12:A30) -> 1081
A20: Molenbeek-Saint-Jean | B20: Sint-Jans-Molenbeek | C20: 5.89 | D20: 96501 | E20: 16383.87 | F20: =_xlfn.XLOOKUP(Solution_EXO_01[[#This Row],[Nom français]],CP_Villes!B13:B31,CP_Villes!A13:A31) -> 1080
A21: Saint-Gilles | B21: Sint-Gillis | C21: 2.52 | D21: 49715 | E21: 19728.17 | F21: =_xlfn.XLOOKUP(Solution_EXO_01[[#This Row],[Nom français]],CP_Villes!B14:B32,CP_Villes!A14:A32) -> 1060
A22: Saint-Josse-ten-Noode | B22: Sint-Joost-ten-Node | C22: 1.14 | D22: 27087 | E22: 23760.53 | F22: =_xlfn.XLOOKUP(Solution_EXO_01[[#This Row],[Nom français]],CP_Villes!B15:B33,CP_Villes!A15:A33) -> 1210
A23: Schaerbeek | B23: Schaarbeek | C23: 8.14 | D23: 131547 | E23: 16160.57 | F23: =_xlfn.XLOOKUP(Solution_EXO_01[[#This Row],[Nom français]],CP_Villes!B16:B34,CP_Villes!A16:A34) -> 1030
A24: Uccle | B24: Ukkel | C24: 22.91 | D24: 82742 | E24: 3611.61 | F24: =_xlfn.XLOOKUP(Solution_EXO_01[[#This Row],[Nom français]],CP_Villes!B17:B35,CP_Villes!A17:A35) -> 1180
A25: Watermael-Boitsfort | B25: Watermaal-Bosvoorde | C25: 12.93 | D25: 25172 | E25: 1946.79 | F25: =_xlfn.XLOOKUP(Solution_EXO_01[[#This Row],[Nom français]],CP_Villes!B18:B36,CP_Villes!A18:A36) -> 1170
A26: Woluwe-Saint-Lambert | B26: Sint-Lambrechts-Woluwe | C26: 7.22 | D26: 56496 | E26: 7824.93 | F26: =_xlfn.XLOOKUP(Solution_EXO_01[[#This Row],[Nom français]],CP_Villes!B19:B37,CP_Villes!A19:A37) -> 1200
A27: Woluwe-Saint-Pierre | B27: Sint-Pieters-Woluwe | C27: 8.85 | D27: 41789 | E27: 4721.92 | F27: =_xlfn.XLOOKUP(Solution_EXO_01[[#This Row],[Nom français]],CP_Villes!B20:B38,CP_Villes!A20:A38) -> 1150

Sheet EXO-02
N1: Retour
A2: Dupliquez la 'query' EXO-01 en EXO-02
A3: En combinant les requêtes, faites en sorte que le CP de chaque ville soit récupéré de la liste CP_Villes
A4: NB : Une 'query' de type connexion uniquement a été créée
A5: Récupérez les données sur la feuille EXO-02

Sheet EXO-02_Solution
N1: Retour
A2: Dupliquez la 'query' EXO-01 en EXO-02
A3: En combinant les requêtes, faites en sorte que le CP de chaque ville soit récupéré de la liste CP_Villes
A4: NB : Une 'query' CP_Villes de type connexion uniquement existe
A5: Recupérez les données sur la feuille EXO-02
A9: Nom français | B9: Nom néerlandais | C9: CP | D9: Superficie (km2) | E9: Population (2019) | F9: Densité
A10: Anderlecht | B10: Anderlecht | C10: 1070 | D10: 17.74 | E10: 118920 | F10: 6703.49
A11: Auderghem | B11: Oudergem | C11: 1160 | D11: 9.03 | E11: 33970 | F11: 3761.9
A12: Berchem-Sainte-Agathe | B12: Sint-Agatha-Berchem | C12: 1082 | D12: 2.95 | E12: 25195 | F12: 8540.68
A13: Ville de Bruxelles | B13: Brussel (stad) | C13: 1000 | D13: 32.61 | E13: 179797 | F13: 5513.55
A14: Etterbeek | B14: Etterbeek | C14: 1040 | D14: 3.15 | E14: 48008 | F14: 15240.63
A15: Evere | B15: Evere | C15: 1140 | D15: 5.02 | E15: 41588 | F15: 8284.46
A16: Forest | B16: Vorst | C16: 1190 | D16: 6.25 | E16: 55925 | F16: 8948
A17: Ganshoren | B17: Ganshoren | C17: 1083 | D17: 2.64 | E17: 24817 | F17: 9400.38
A18: Ixelles | B18: Elsene | C18: 1050 | D18: 6.34 | E18: 86675 | F18: 13671.14
A19: Jette | B19: Jette | C19: 1090 | D19: 5.04 | E19: 52417 | F19: 10400.2
A20: Koekelberg | B20: Koekelberg | C20: 1081 | D20: 1.17 | E20: 21961 | F20: 18770.09
A21: Molenbeek-Saint-Jean | B21: Sint-Jans-Molenbeek | C21: 1080 | D21: 5.89 | E21: 96501 | F21: 16383.87
A22: Saint-Gilles | B22: Sint-Gillis | C22: 1060 | D22: 2.52 | E22: 49715 | F22: 19728.17
A23: Saint-Josse-ten-Noode | B23: Sint-Joost-ten-Node | C23: 1210 | D23: 1.14 | E23: 27087 | F23: 23760.53
A24: Schaerbeek | B24: Schaarbeek | C24: 1030 | D24: 8.14 | E24: 131547 | F24: 16160.57
A25: Uccle | B25: Ukkel | C25: 1180 | D25: 22.91 | E25: 82742 | F25: 3611.61
A26: Watermael-Boitsfort | B26: Watermaal-Bosvoorde | C26: 1170 | D26: 12.93 | E26: 25172 | F26: 1946.79
A27: Woluwe-Saint-Lambert | B27: Sint-Lambrechts-Woluwe | C27: 1200 | D27: 7.22 | E27: 56496 | F27: 7824.93
A28: Woluwe-Saint-Pierre | B28: Sint-Pieters-Woluwe | C28: 1150 | D28: 8.85 | E28: 41789 | F28: 4721.92

Sheet EXO-03
N1: Retour
A2: Utilisez les données de la feuille 'Interventions' et les données de 'CP_Villes de façon à créer un TCD
A3: donnant le nombre d'interventions par Commune. Ici la relation entre le CP et la commune est faite en construisant le TCD

Sheet EXO-03_Solution
N1: Retour
A2: Utilisez les données de la feuille 'Interventions' et les données de 'CP_Villes de façon à créer un TCD
A3: donnant le nombre d'interventions par Commune. Ici la relation entre le CP et la commune est faite en construisant le TCD
A4: Ajoutez le nom du praticien en regroupement 'colonne'
B12: Nombre d'intervention | C12: Praticien
B13: Communes | C13: Deuf | D13: Tredelè | E13: Total général
B14: Ixelles | C14: 6 | D14: 6 | E14: 12
B15: Molenbeek-Saint-Jean | C15: 1 | E15: 1
B16: Saint-Gilles | C16: 8 | D16: 7 | E16: 15
B17: Ville de Bruxelles | C17: 4 | D17: 1 | E17: 5
B18: Woluwe-Saint-Lambert | C18: 3 | D18: 3 | E18: 6
B19: Woluwe-Saint-Pierre | C19: 1 | D19: 1 | E19: 2
B20: (vide) | C20: 1 | E20: 1
B21: Total général | C21: 24 | D21: 18 | E21: 42
A23: NB : | B23: Les relations peuvent être visualisées via le bouton 'Relations' du ruban contextuel des TCD
